fUST/lending_fUST_20250729
["ID","MTS","AMOUNT","RATE_DAILY","PERIOD"]
[375925709,1753786269221,-151.0,0.00021095,2]
[375925710,1753786269230,-327.81802727,0.00021095,2]
[375925711,1753786269240,-460.0,0.00021095,2]
[375925712,1753786269251,-460.0,0.00021095,2]
[375925713,1753786269260,-1491.79,0.00021095,2]
[375925714,1753786269270,-848.07,0.00021095,2]
[375925715,1753786269283,-500.0,0.00021096,2]
[375925716,1753786269292,-151.0,0.00021096,2]
[375925717,1753786269301,-500.0,0.00021096,2]
[375925718,1753786269310,-151.0,0.00021096,2]
[375925719,1753786269320,-635.0,0.00021096,2]
[375925720,1753786269329,-151.0,0.00021096,2]
[375925721,1753786269339,-500.0,0.00021096,2]
[375925722,1753786269348,-500.0,0.00021096,2]
[375925723,1753786269358,-500.0,0.00021096,2]
[375925724,1753786269368,-411.86702072,0.00021105,2]
[375925725,1753786269379,-615.2821362,0.00021107,4]
[375925726,1753786269388,-360.0,0.00021115,2]
[375925727,1753786269398,-506.90459602,0.00021116,2]
[375925728,1753786269407,-2000.0,0.00021116,2]
[375925729,1753786269416,-168.0,0.00021121,2]
[375925730,1753786269426,-200.0,0.00021143,15]
[375925731,1753786269435,-200.0,0.00021143,15]
[375925732,1753786269444,-200.0,0.00021143,15]
[375925733,1753786269454,-200.0,0.00021143,15]
[375925734,1753786269464,-320.0,0.00021143,15]
[375925735,1753786269474,-1843.1,0.0002115,4]
[375925736,1753786269486,-4000.0,0.00021168,3]
[375925737,1753786269496,-645.79953796,0.00021192,2]
[375925738,1753786269507,-5022.7,0.00021241,3]
[375925739,1753786269517,-1649.955994,0.00021241,2]
[375925740,1753786269527,-1649.955994,0.00021241,2]
[375925741,1753786269536,-615.2821362,0.00021245,4]
[375925742,1753786269547,-151.0,0.0002125,2]
[375925743,1753786269558,-460.5085953,0.0002125,3]
[375925744,1753786269568,-160.0,0.0002125,3]
[375925745,1753786269577,-214.91980558,0.0002125,3]
[375925746,1753786269587,-312.16666667,0.0002125,3]
[375925747,1753786269596,-12637.12721421,0.0002125,3]
[375925748,1753786269605,-306.7325403,0.0002126,2]
[375925749,1753786269615,-160.1053548,0.0002126,2]
[375925750,1753786269625,-160.1053548,0.0002126,2]
[375925751,1753786269634,-178.4386705,0.0002126,2]
[375925752,1753786269643,-205.7268859,0.0002126,2]
[375925753,1753786269652,-578.1881624,0.0002126,2]
[375925754,1753786269662,-578.1881624,0.0002126,2]
[375925755,1753786269671,-151.0,0.00021326,2]
[375925756,1753786269680,-168.0,0.00021345,2]
[375925757,1753786269690,-2500.0,0.00021364,2]
[375925758,1753786269699,-151.0,0.00021369,2]
[375925759,1753786269709,-152.139811,0.00021369,2]
[375925760,1753786269719,-151.0,0.00021369,2]
[375925761,1753786269729,-151.0,0.00021369,2]
[375925762,1753786269738,-151.0,0.00021369,2]
[375925763,1753786269748,-154.062904,0.00021369,2]
[375925764,1753786269757,-202.031419,0.00021369,2]
[375925765,1753786269767,-460.017518,0.00021369,2]
[375925766,1753786269776,-151.0,0.00021369,2]
[375925767,1753786269785,-151.0,0.00021369,2]
[375925768,1753786269795,-176.994385,0.00021369,2]
[375925769,1753786269804,-176.994385,0.00021369,2]
[375925770,1753786269814,-465.61557557,0.00021369,2]
[375925771,1753786269823,-460.0,0.00021369,2]
[375925772,1753786269833,-460.0,0.00021369,2]
[375925773,1753786269842,-151.0,0.00021369,2]
[375925774,1753786269852,-151.0,0.00021369,2]
[375925775,1753786269862,-460.0,0.00021369,2]
[375925776,1753786269871,-460.0,0.00021369,2]
[375925777,1753786269882,-460.0,0.00021369,2]
[375925778,1753786269891,-460.0,0.00021369,2]
[375925779,1753786269902,-460.0,0.00021369,2]
[375925780,1753786269912,-281.869124,0.00021369,2]
[375925781,1753786269923,-281.869124,0.00021369,2]
[375925782,1753786269934,-460.0,0.00021369,2]
[375925783,1753786269944,-460.0,0.00021369,2]
[375925784,1753786269953,-558.73,0.00021369,2]
[375925785,1753786269963,-467.35681721,0.00021369,2]
[375925786,1753786269973,-460.0,0.00021369,2]
[375925787,1753786269984,-460.0,0.00021369,2]
[375925788,1753786269997,-223.69975017,0.00021369,2]
[375925789,1753786270006,-641.17,0.00021369,2]
[375925790,1753786270015,-460.0,0.00021369,2]
[375925791,1753786270024,-564.54,0.00021369,2]
[375925792,1753786270034,-460.0,0.00021369,2]
[375925793,1753786270043,-460.0,0.00021369,2]
[375925794,1753786270053,-460.0,0.00021369,2]
[375925795,1753786270063,-460.0,0.00021369,2]
[375925796,1753786270072,-460.0,0.00021369,2]
[375925797,1753786270081,-460.0,0.00021369,2]
[375925798,1753786270090,-3330.66,0.00021369,2]
[375925799,1753786270099,-460.0,0.00021369,2]
[375925800,1753786270109,-460.0,0.00021369,2]
[375925801,1753786270118,-889.55,0.00021369,2]
[375925802,1753786270128,-1469.59,0.00021369,2]
[375925803,1753786270137,-623.86,0.00021369,2]
[375925804,1753786270146,-631.4,0.00021369,2]
[375925805,1753786270158,-460.0,0.00021369,2]
[375925806,1753786270169,-233.58690594,0.00021369,2]
[375925807,1753786270179,-460.0,0.00021369,2]
[375925808,1753786270189,-16.59661536,0.00021369,2]
[375925809,1753786270407,-460.0,0.00019178,2]
[375925810,1753786270417,-443.40338464,0.00021369,2]
[375925811,1753786270427,-589.99683395,0.00021369,2]
[375925812,1753786270437,-4205.18,0.00021369,2]
[375925813,1753786270447,-460.0,0.00021369,2]
[375925814,1753786270457,-460.0,0.00021369,2]
[375925815,1753786270466,-151.0,0.00021369,2]
[375925816,1753786270475,-545.41,0.00021369,2]
[375925817,1753786270487,-1655.39,0.00021369,2]
[375925818,1753786270497,-460.0,0.00021369,2]
[375925819,1753786270506,-460.0,0.00021369,2]
[375925820,1753786270515,-460.0,0.00021369,2]
[375925821,1753786270525,-460.0,0.00021369,2]
[375925822,1753786270535,-460.0,0.00021369,2]
[375925823,1753786270544,-460.0,0.00021369,2]
[375925824,1753786270647,-683.88,0.00021369,2]
[375925825,1753786270657,-419.52926777,0.00021369,2]
[375925826,1753786270667,-151.0,0.00021369,2]
[375925827,1753786270676,-790.94,0.00021369,2]
[375925828,1753786270686,-460.0,0.00021369,2]
[375925829,1753786270696,-460.0,0.00021369,2]
[375925830,1753786270706,-460.0,0.00021369,2]
[375925831,1753786270715,-460.0,0.00021369,2]
[375925832,1753786270725,-539.65,0.00021369,2]
[375925833,1753786270735,-916.43,0.00021369,2]
[375925834,1753786270745,-460.0,0.00021369,2]
[375925835,1753786270754,-658.24,0.00021369,2]
[375925836,1753786270763,-772.21,0.00021369,2]
[375925837,1753786270773,-460.0,0.00021369,2]
[375925838,1753786270782,-467.82381552,0.00021369,2]
[375925839,1753786270792,-460.0,0.00021369,2]
[375925840,1753786270801,-463.54,0.00021369,2]
[375925841,1753786270811,-460.0,0.00021369,2]
[375925842,1753786270820,-460.0,0.00021369,2]
[375925843,1753786270829,-460.0,0.00021369,2]
[375925844,1753786270840,-151.0,0.00021369,2]
[375925845,1753786270850,-5310.21,0.00021369,2]
[375925846,1753786270862,-543.44,0.00021369,2]
[375925847,1753786270872,-460.0,0.00021369,2]
[375925848,1753786270882,-886.02,0.00021369,2]
[375925849,1753786270892,-460.0,0.00021369,2]
[375925850,1753786270902,-460.0,0.00021369,2]
[375925851,1753786270912,-1215.12,0.00021369,2]
[375925852,1753786270921,-1847.32,0.00021369,2]
[375925853,1753786270931,-460.0,0.00021369,2]
[375925854,1753786270941,-872.66,0.00021369,2]
[375925855,1753786270951,-460.0,0.00021369,2]
[375925856,1753786270960,-460.0,0.00021369,2]
[375925857,1753786270970,-824.86,0.00021369,2]
[375925858,1753786270979,-1143.82,0.00021369,2]
[375925859,1753786270989,-460.0,0.00021369,2]
[375925860,1753786270999,-460.0,0.00021369,2]
[375925861,1753786271009,-460.0,0.00021369,2]
[375925862,1753786271019,-460.0,0.00021369,2]
[375925863,1753786271029,-489.82,0.00021369,2]
[375925864,1753786271039,-1322.92,0.00021369,2]
[375925865,1753786271048,-460.0,0.00021369,2]
[375925866,1753786271058,-616.15,0.00021369,2]
[375925867,1753786271067,-695.65,0.00021369,2]
[375925868,1753786271077,-590.32,0.00021369,2]
[375925869,1753786271086,-6923.83,0.00021369,2]
[375925870,1753786271096,-460.0,0.00021369,2]
[375925871,1753786271105,-460.0,0.00021369,2]
[375925872,1753786271115,-151.0,0.00021369,2]
[375925873,1753786271125,-460.0,0.00021369,2]
[375925874,1753786271135,-483.25088908,0.00021369,2]
[375925875,1753786271144,-208.88615722,0.00021369,2]
[375925876,1753786271153,-4807.24,0.00021369,2]
[375925877,1753786271163,-1054.57,0.00021369,2]
[375925878,1753786271172,-460.0,0.00021369,2]
[375925879,1753786271181,-1367.47,0.00021369,2]
[375925880,1753786271191,-460.0,0.00021369,2]
[375925881,1753786271201,-1127.35,0.00021369,2]
[375925882,1753786271210,-460.0,0.00021369,2]
[375925883,1753786271219,-1757.04,0.00021369,2]
[375925884,1753786271229,-882.88,0.00021369,2]
[375925885,1753786271239,-1087.46,0.00021369,2]
[375925886,1753786271247,-1097.94,0.00021369,2]
[375925887,1753786271256,-452.99471015,0.00021369,2]
[375925888,1753786271265,-967.65,0.00021369,2]
[375925889,1753786271275,-460.0,0.00021369,2]
[375925890,1753786271284,-460.0,0.00021369,2]
[375925891,1753786271294,-460.0,0.00021369,2]
[375925892,1753786271303,-460.0,0.00021369,2]
[375925893,1753786271313,-460.0,0.00021369,2]
[375925894,1753786271322,-460.0,0.00021369,2]
[375925895,1753786271331,-4403.09,0.00021369,2]
[375925896,1753786271341,-460.0,0.00021369,2]
[375925897,1753786271351,-460.0,0.00021369,2]
[375925898,1753786271360,-1259.84,0.00021369,2]
[375925899,1753786271369,-3860.25,0.00021369,2]
[375925900,1753786271380,-460.0,0.00021369,2]
[375925901,1753786271389,-3629.56,0.00021369,2]
[375925902,1753786271399,-5778.25,0.00021369,2]
[375925903,1753786271409,-2172.77,0.00021369,2]
[375925904,1753786271418,-460.0,0.00021369,2]
[375925905,1753786271427,-13244.83,0.00021369,2]
[375925906,1753786271437,-4434.88,0.00021369,2]
[375925907,1753786271447,-460.0,0.00021369,2]
[375925908,1753786271456,-460.0,0.00021369,2]
[375925909,1753786271465,-460.0,0.00021369,2]
[375925910,1753786271475,-442.48429998,0.00021369,2]
[375925911,1753786271488,-460.0,0.00021369,2]
[375925912,1753786271498,-460.0,0.00021369,2]
[375925913,1753786271508,-460.0,0.00021369,2]
[375925914,1753786271517,-460.0,0.00021369,2]
[375925915,1753786271526,-764.02,0.00021369,2]
[375925916,1753786271536,-471.53660898,0.00021369,2]
[375925917,1753786271545,-519.68,0.00021369,2]
[375925918,1753786271556,-460.0,0.00021369,2]
[375925919,1753786271565,-579.38,0.00021369,2]
[375925920,1753786271575,-1554.77,0.00021369,2]
[375925921,1753786271584,-460.0,0.00021369,2]
[375925922,1753786271594,-532.21,0.00021369,2]
[375925923,1753786271603,-1516.66,0.00021369,2]
[375925924,1753786271613,-460.0,0.00021369,2]
[375925925,1753786271622,-460.0,0.00021369,2]
[375925926,1753786271632,-582.69,0.00021369,2]
[375925927,1753786271641,-460.0,0.00021369,2]
[375925928,1753786271651,-4089.71,0.00021369,2]
[375925929,1753786271660,-460.0,0.00021369,2]
[375925930,1753786271670,-1608.13,0.00021369,2]
[375925931,1753786271679,-460.0,0.00021369,2]
[375925932,1753786271689,-460.0,0.00021369,2]
[375925933,1753786271699,-2885.28,0.00021369,2]
[375925934,1753786271708,-1019.55,0.00021369,2]
[375925935,1753786271717,-460.0,0.00021369,2]
[375925936,1753786271727,-1459.12,0.00021369,2]
[375925937,1753786271737,-4196.7,0.00021369,2]
[375925938,1753786271747,-1265.05,0.00021369,2]
[375925939,1753786271756,-794.22,0.00021369,2]
[375925940,1753786271766,-460.0,0.00021369,2]
[375925941,1753786271776,-11712.56,0.00021369,2]
[375925942,1753786271785,-460.0,0.00021369,2]
[375925943,1753786271795,-450.28403271,0.00021369,2]
[375925944,1753786271863,-460.0,0.00019452,2]
[375925945,1753786271872,-40.0,0.00019726,2]
[375925946,1753786272308,-391.97824157,0.00019726,2]
[375925947,1753786272321,-28.02175843,0.00019726,2]
[375925948,1753786272331,-460.0,0.0002,2]
[375925949,1753786272341,-460.0,0.00020273,2]
[375925950,1753786272351,-593.69608736,0.00020547,2]
[375925951,1753786272360,-37.27596729,0.00021369,2]
[375925952,1753786272370,-460.0,0.00021369,2]
[375925953,1753786272382,-460.0,0.00021369,2]
[375925954,1753786272391,-784.83,0.00021369,2]
[375925955,1753786272401,-725.41,0.00021369,2]
[375925956,1753786272411,-460.0,0.00021369,2]
[375925957,1753786272420,-460.0,0.00021369,2]
[375925958,1753786272430,-1482.43,0.00021369,2]
[375925959,1753786272439,-926.26,0.00021369,2]
[375925960,1753786272448,-612.57,0.00021369,2]
[375925961,1753786272457,-460.0,0.00021369,2]
[375925962,1753786272467,-1508.23,0.00021369,2]
[375925963,1753786272477,-1388.48,0.00021369,2]
[375925964,1753786272491,-156.422236,0.00021369,2]
[375925965,1753786272501,-460.0,0.00021369,2]
[375925966,1753786272511,-460.0,0.00021369,2]
[375925967,1753786272520,-1491.79,0.00021369,2]
[375925968,1753786272529,-848.07,0.00021369,2]
[375925969,1753786272538,-500.0,0.0002137,2]
[375925970,1753786272549,-633.69002538,0.0002137,2]
[375925971,1753786272560,-151.0,0.0002137,2]
[375925972,1753786272569,-635.0,0.0002137,2]
[375925973,1753786272578,-151.0,0.0002137,2]
[375925974,1753786272588,-151.0,0.0002137,2]
[375925975,1753786272598,-500.0,0.0002137,2]
[375925976,1753786272607,-168.0,0.00021382,2]
[375925977,1753786272617,-615.2821362,0.00021383,5]
[375925978,1753786272627,-430.1392862,0.00021397,2]
[375925979,1753786272636,-430.1392862,0.00021397,2]
[375925980,1753786272646,-430.1392862,0.00021397,2]
[375925981,1753786272655,-430.1392862,0.00021397,2]
[375925982,1753786272664,-430.1392862,0.00021397,2]
[375925983,1753786272674,-862.6988711,0.00021397,2]
[375925984,1753786272683,-1014.23413505,0.00021416,2]
[375925985,1753786272693,-2000.0,0.00021416,2]
[375925986,1753786272702,-30000.0,0.00021417,2]
[375925987,1753786272712,-216.838595,0.00021417,2]
[375925988,1753786272721,-151.0,0.00021417,2]
[375925989,1753786272731,-151.0,0.00021417,2]
[375925990,1753786272741,-150.194334,0.00021426,3]
[375925991,1753786272751,-615.2821362,0.00021521,5]
[375925992,1753786272761,-250.0,0.00021572,2]
[375925993,1753786272771,-168.0,0.0002162,2]
[375925994,1753786272780,-1843.1,0.00021626,4]
[375925995,1753786272790,-201.20083019,0.00021642,2]
[375925996,1753786272800,-200.98219254,0.00021642,2]
[375925997,1753786272810,-242.64135247,0.00021642,2]
[375925998,1753786272819,-152.710179,0.00021643,2]
[375925999,1753786272829,-208.686911,0.00021643,2]
[375926000,1753786272839,-151.0,0.00021643,2]
[375926001,1753786272848,-151.0,0.00021643,2]
[375926002,1753786272863,-202.031419,0.00021643,2]
[375926003,1753786272883,-460.017518,0.00021643,2]
[375926004,1753786272902,-151.263225,0.00021643,2]
[375926005,1753786272923,-151.0,0.00021643,2]
[375926006,1753786272943,-151.0,0.00021643,2]
[375926007,1753786272961,-156.529591,0.00021643,2]
[375926008,1753786272981,-155.07713,0.00021643,2]
[375926009,1753786272998,-151.0,0.00021643,2]
[375926010,1753786273015,-151.0,0.00021643,2]
[375926011,1753786273035,-151.0,0.00021643,2]
[375926012,1753786273056,-151.0,0.00021643,2]
[375926013,1753786273072,-151.0,0.00021643,2]
[375926014,1753786273091,-460.0,0.00021643,2]
[375926015,1753786273106,-151.0,0.00021643,2]
[375926016,1753786273122,-153.055447,0.00021643,2]
[375926017,1753786273137,-164.26348748,0.00021643,2]
[375926018,1753786273153,-151.0,0.00021643,2]
[375926019,1753786273167,-151.0,0.00021643,2]
[375926020,1753786273181,-226.923711,0.00021643,2]
[375926021,1753786273198,-226.923711,0.00021643,2]
[375926022,1753786273213,-412.572703,0.00021643,2]
[375926023,1753786273229,-412.572703,0.00021643,2]
[375926024,1753786273244,-460.0,0.00021643,2]
[375926025,1753786273259,-460.0,0.00021643,2]
[375926026,1753786273274,-460.0,0.00021643,2]
[375926027,1753786273289,-460.0,0.00021643,2]
[375926028,1753786273304,-294.725892,0.00021643,2]
[375926029,1753786273319,-294.725892,0.00021643,2]
[375926030,1753786273334,-194.116374,0.00021643,2]
[375926031,1753786273348,-194.116374,0.00021643,2]
[375926032,1753786273363,-151.0,0.00021643,2]
[375926033,1753786273377,-460.0,0.00021643,2]
[375926034,1753786273387,-460.0,0.00021643,2]
[375926035,1753786273396,-460.0,0.00021643,2]
[375926036,1753786273405,-558.73,0.00021643,2]
[375926037,1753786273415,-432.54197,0.00021643,2]
[375926038,1753786273425,-432.54197,0.00021643,2]
[375926039,1753786273435,-460.0,0.00021643,2]
[375926040,1753786273444,-151.0,0.00021643,2]
[375926041,1753786273455,-325.000115,0.00021643,2]
[375926042,1753786273464,-325.000115,0.00021643,2]
[375926043,1753786273475,-641.17,0.00021643,2]
[375926044,1753786273487,-460.0,0.00021643,2]
[375926045,1753786273497,-354.950465,0.00021643,2]
[375926046,1753786273507,-354.950465,0.00021643,2]
[375926047,1753786273517,-154.111085,0.00021643,2]
[375926048,1753786273528,-564.54,0.00021643,2]
[375926049,1753786273538,-151.0,0.00021643,2]
[375926050,1753786273548,-460.0,0.00021643,2]
[375926051,1753786273557,-460.0,0.00021643,2]
[375926052,1753786273568,-151.0,0.00021643,2]
[375926053,1753786273578,-460.0,0.00021643,2]
[375926054,1753786273588,-460.0,0.00021643,2]
[375926055,1753786273597,-460.0,0.00021643,2]
[375926056,1753786273607,-460.0,0.00021643,2]
[375926057,1753786273618,-460.0,0.00021643,2]
[375926058,1753786273630,-3330.66,0.00021643,2]
[375926059,1753786273639,-460.0,0.00021643,2]
[375926060,1753786273648,-889.55,0.00021643,2]
[375926061,1753786273658,-1469.59,0.00021643,2]
[375926062,1753786273667,-231.789757,0.00021643,2]
[375926063,1753786273677,-623.86,0.00021643,2]
[375926064,1753786273687,-631.4,0.00021643,2]
[375926065,1753786273697,-460.0,0.00021643,2]
[375926066,1753786273708,-460.0,0.00021643,2]
[375926067,1753786273717,-460.0,0.00021643,2]
[375926068,1753786273727,-4205.18,0.00021643,2]
[375926069,1753786273736,-1730.549651,0.00021643,2]
[375926070,1753786273746,-151.0,0.00021643,2]
[375926071,1753786274061,-1730.549651,0.00021643,2]
[375926072,1753786274076,-460.0,0.00021643,2]
[375926073,1753786274087,-151.0,0.00021643,2]
[375926074,1753786274096,-460.0,0.00021643,2]
[375926075,1753786274106,-545.41,0.00021643,2]
[375926076,1753786274115,-1649.955994,0.00021643,2]
[375926077,1753786274124,-1649.955994,0.00021643,2]
[375926078,1753786274135,-1655.39,0.00021643,2]
[375926079,1753786274145,-151.0,0.00021643,2]
[375926080,1753786274155,-460.0,0.00021643,2]
[375926081,1753786274164,-460.0,0.00021643,2]
[375926082,1753786274174,-460.0,0.00021643,2]
[375926083,1753786274185,-460.0,0.00021643,2]
[375926084,1753786274194,-460.0,0.00021643,2]
[375926085,1753786274205,-460.0,0.00021643,2]
[375926086,1753786274215,-683.88,0.00021643,2]
[375926087,1753786274224,-790.94,0.00021643,2]
[375926088,1753786274234,-460.0,0.00021643,2]
[375926089,1753786274243,-217.89499838,0.00021643,2]
[375926090,1753786274253,-538.319591,0.00021643,2]
[375926091,1753786274263,-460.0,0.00021643,2]
[375926092,1753786274273,-460.0,0.00021643,2]
[375926093,1753786274283,-539.65,0.00021643,2]
[375926094,1753786274292,-538.319591,0.00021643,2]
[375926095,1753786274301,-151.0,0.00021643,2]
[375926096,1753786274310,-916.43,0.00021643,2]
[375926097,1753786274319,-460.0,0.00021643,2]
[375926098,1753786274328,-658.24,0.00021643,2]
[375926099,1753786274338,-772.21,0.00021643,2]
[375926100,1753786274351,-460.0,0.00021643,2]
[375926101,1753786274366,-151.0,0.00021643,2]
[375926102,1753786274375,-460.0,0.00021643,2]
[375926103,1753786274386,-463.54,0.00021643,2]
[375926104,1753786274395,-460.0,0.00021643,2]
[375926105,1753786274407,-460.0,0.00021643,2]
[375926106,1753786274428,-460.0,0.00021643,2]
[375926107,1753786274439,-151.0,0.00021643,2]
[375926108,1753786274447,-5310.21,0.00021643,2]
[375926109,1753786274457,-543.44,0.00021643,2]
[375926110,1753786274467,-460.0,0.00021643,2]
[375926111,1753786274477,-886.02,0.00021643,2]
[375926112,1753786274491,-460.0,0.00021643,2]
[375926113,1753786274501,-460.0,0.00021643,2]
[375926114,1753786274511,-1215.12,0.00021643,2]
[375926115,1753786274523,-1847.32,0.00021643,2]
[375926116,1753786274533,-872.66,0.00021643,2]
[375926117,1753786274543,-460.0,0.00021643,2]
[375926118,1753786274553,-460.0,0.00021643,2]
[375926119,1753786274566,-824.86,0.00021643,2]
[375926120,1753786274577,-1143.82,0.00021643,2]
[375926121,1753786274586,-460.0,0.00021643,2]
[375926122,1753786274596,-460.0,0.00021643,2]
[375926123,1753786274606,-460.0,0.00021643,2]
[375926124,1753786274616,-460.0,0.00021643,2]
[375926125,1753786274626,-489.82,0.00021643,2]
[375926126,1753786274636,-1322.92,0.00021643,2]
[375926127,1753786274646,-470.94341834,0.00021643,2]
[375926128,1753786274656,-616.15,0.00021643,2]
[375926129,1753786274667,-695.65,0.00021643,2]
[375926130,1753786274677,-590.32,0.00021643,2]
[375926131,1753786274686,-6923.83,0.00021643,2]
[375926132,1753786274696,-460.0,0.00021643,2]
[375926133,1753786274707,-460.0,0.00021643,2]
[375926134,1753786274717,-151.0,0.00021643,2]
[375926135,1753786274727,-180.77539851,0.00021643,2]
[375926136,1753786274737,-4807.24,0.00021643,2]
[375926137,1753786274748,-1054.57,0.00021643,2]
[375926138,1753786274758,-460.0,0.00021643,2]
[375926139,1753786274768,-1367.47,0.00021643,2]
[375926140,1753786274778,-1127.35,0.00021643,2]
[375926141,1753786274789,-460.0,0.00021643,2]
[375926142,1753786274800,-1757.04,0.00021643,2]
[375926143,1753786274811,-882.88,0.00021643,2]
[375926144,1753786274821,-1087.46,0.00021643,2]
[375926145,1753786274831,-1097.94,0.00021643,2]
[375926146,1753786274841,-460.0,0.00021643,2]
[375926147,1753786274852,-967.65,0.00021643,2]
[375926148,1753786274862,-460.0,0.00021643,2]
[375926149,1753786274873,-151.0,0.00021643,2]
[375926150,1753786274886,-460.0,0.00021643,2]
[375926151,1753786274897,-460.0,0.00021643,2]
[375926152,1753786274908,-460.0,0.00021643,2]
[375926153,1753786274919,-4403.09,0.00021643,2]
[375926154,1753786274930,-460.0,0.00021643,2]
[375926155,1753786274940,-460.0,0.00021643,2]
[375926156,1753786274950,-1259.84,0.00021643,2]
[375926157,1753786274960,-3860.25,0.00021643,2]
[375926158,1753786274970,-410.41769394,0.00021643,2]
[375926159,1753786274981,-5778.25,0.00021643,2]
[375926160,1753786274991,-3629.56,0.00021643,2]
[375926161,1753786275002,-1106.76645902,0.00021643,2]
[375926162,1753786275667,-382.20791143,0.00019178,2]
[375926163,1753786275677,-1066.00354098,0.00021643,2]
[375926164,1753786275686,-460.0,0.00021643,2]
[375926165,1753786275696,-4434.88,0.00021643,2]
[375926166,1753786275707,-3504.08083904,0.00021643,2]
[375926167,1753786384278,-152.28588781,0.00018199,2]
[375926168,1753786388385,-249.32764975,0.00018199,2]
[375926169,1753786392451,-95.71326944,0.00018199,2]
[375926174,1753786743209,800.0,0.00018,2]
[375926175,1753786805678,-191.6112096,0.00018166,2]
[375926176,1753786805701,-12.67552096,0.00018166,2]
[375926177,1753786807332,-487.32447904,0.00018166,2]
[375926178,1753786807355,-12.67552096,0.00018166,2]
[375926179,1753786809194,-358.6568549,0.00018166,2]
[375926182,1753786811308,-128.66762414,0.00018166,2]
[375926183,1753786811333,-331.33237586,0.00018166,2]
[375926184,1753786813996,-160.0,0.00018166,2]
[375926186,1753786815599,-8.66762414,0.00018166,2]
[375926187,1753786815638,-451.33237586,0.00018166,2]
[375926188,1753786817767,-48.66762414,0.00018166,2]
[375926189,1753786817794,-147.22085586,0.00018166,2]
[375926190,1753786820883,-352.77914414,0.00018166,2]
[375926191,1753786820909,-107.22085586,0.00018166,2]
[375926192,1753786823788,-392.77914414,0.00018166,2]
[375926193,1753786823817,-67.22085586,0.00018166,2]
[375926194,1753786826020,-333.34904124,0.00018166,2]
[375926195,1753786826046,-136.86840379,0.00018276,2]
[375926196,1753786828135,-184.41945253,0.00018276,2]
[375926197,1753786829714,-203.11237744,0.00018276,2]
[375926198,1753786832873,-222.15660986,0.00018276,2]
[375926199,1753786837817,-258.47483683,0.00018276,2]
[375926200,1753786840625,-295.87265316,0.00018276,2]
[375926201,1753786843240,-318.71538044,0.00018276,2]
[375926202,1753786846738,-200.03596987,0.00018276,2]
[375926203,1753786853906,-201.48293212,0.00018276,2]
[375926204,1753786862055,180.95195269,0.00018101,2]
[375926211,1753786892252,-184.39734065,0.00018176,2]
[375926214,1753786894045,484.6911534,0.00017728,2]
[375926215,1753786894920,-217.16379239,0.00018176,2]
[375926220,1753786961716,-225.13567612,0.00018175,2]
[375926231,1753787195347,290.81469204,0.00017728,2]
[375926238,1753787318409,525.791497,0.00013699,2]
[375926286,1753787432091,-1200.0,0.00018274,2]
[375926288,1753787432101,-300.0,0.00018274,2]
[375926290,1753787432111,-1200.0,0.00018275,2]
[375926292,1753787432121,-291.15536427,0.00018275,2]
[375926294,1753787432131,-280.060932,0.00018275,2]